[Event "*** Titled Tuesday Blitz"]
[Site "Chess.com"]
[Date "2020.04.14"]
[Round "6"]
[White "SuperCheese"]
[Black "Manukyan_Artak"]
[Result "1-0"]
[WhiteElo "2512"]
[BlackElo "2326"]
[TimeControl "180+1"]
[EndTime "11:04:28 PDT"]
[Termination "SuperCheese won by checkmate"]

1. d4 {[%clk 0:03:00.9]} 1... Nf6 {[%clk 0:02:59.5]} 2. c4 {[%clk 0:02:59.9]}
2... e6 {[%clk 0:02:59.4]} 3. Nc3 {[%clk 0:03:00]} 3... Bb4 {[%clk 0:02:59.4]}
4. a3 {[%clk 0:03:00.6]} 4... Bxc3+ {[%clk 0:02:59.2]} 5. bxc3 {[%clk
0:03:01.5]} 5... c5 {[%clk 0:02:59.4]} 6. f3 {[%clk 0:03:01.9]} 6... d6 {[%clk
0:02:59.7]} 7. e4 {[%clk 0:03:02]} 7... e5 {[%clk 0:03:00]} 8. Bd3 {[%clk
0:03:02.5]} 8... cxd4 {[%clk 0:02:54.9]} 9. cxd4 {[%clk 0:03:02]} 9... exd4
{[%clk 0:02:55.1]} 10. Ne2 {[%clk 0:03:02.5]} 10... Nc6 {[%clk 0:02:55.2]} 11.
O-O {[%clk 0:03:02.3]} 11... O-O {[%clk 0:02:52.9]} 12. Bb2 {[%clk 0:03:02.6]}
12... Nh5 {[%clk 0:02:32.5]} 13. Qd2 {[%clk 0:02:29.8]} 13... Be6 {[%clk
0:01:55.2]} 14. Rfb1 {[%clk 0:02:06.5]} 14... Qf6 {[%clk 0:01:28.6]} 15. Rf1
{[%clk 0:01:08.9]} 15... Rac8 {[%clk 0:01:15.3]} 16. g4 {[%clk 0:01:03.2]} 16...
Ne5 {[%clk 0:00:58.7]} 17. gxh5 {[%clk 0:00:45.2]} 17... Nxf3+ {[%clk
0:00:56.1]} 18. Rxf3 {[%clk 0:00:45]} 18... Qxf3 {[%clk 0:00:57]} 19. Nxd4
{[%clk 0:00:35.5]} 19... Qxh5 {[%clk 0:00:49.2]} 20. Qg2 {[%clk 0:00:32.2]}
20... g6 {[%clk 0:00:40.5]} 21. Rf1 {[%clk 0:00:31]} 21... Bxc4 {[%clk
0:00:37.4]} 22. Nf5 {[%clk 0:00:20.6]} 22... Rfe8 {[%clk 0:00:28.9]} 23. Rc1
{[%clk 0:00:20.2]} 23... b5 {[%clk 0:00:24.5]} 24. Qg3 {[%clk 0:00:17.1]} 24...
Red8 {[%clk 0:00:17.1]} 25. Ne7+ {[%clk 0:00:16.5]} 25... Kf8 {[%clk 0:00:17.3]}
26. Nxc8 {[%clk 0:00:16.6]} 26... Rxc8 {[%clk 0:00:17.6]} 27. Qxd6+ {[%clk
0:00:16.4]} 27... Kg8 {[%clk 0:00:18]} 28. Qd4 {[%clk 0:00:16.3]} 28... Qg5+
{[%clk 0:00:16.3]} 29. Kf2 {[%clk 0:00:14.7]} 29... Qf4+ {[%clk 0:00:13.9]} 30.
Ke2 {[%clk 0:00:13.9]} 30... Bxd3+ {[%clk 0:00:12.5]} 31. Kxd3 {[%clk
0:00:13.9]} 31... Qf3+ {[%clk 0:00:12.6]} 32. Kd2 {[%clk 0:00:13.7]} 32... Qg2+
{[%clk 0:00:12.7]} 33. Kd3 {[%clk 0:00:13.5]} 33... Qf3+ {[%clk 0:00:13]} 34.
Qe3 {[%clk 0:00:13.7]} 34... Rd8+ {[%clk 0:00:07.5]} 35. Bd4 {[%clk 0:00:13.9]}
35... Qg4 {[%clk 0:00:07.1]} 36. Rf1 {[%clk 0:00:12.6]} 36... Qe6 {[%clk
0:00:07.3]} 37. Rc1 {[%clk 0:00:11]} 37... Qb3+ {[%clk 0:00:07]} 38. Rc3 {[%clk
0:00:11.3]} 38... Qb1+ {[%clk 0:00:07.2]} 39. Ke2 {[%clk 0:00:11.5]} 39... Qh1
{[%clk 0:00:06.1]} 40. Qf2 {[%clk 0:00:10.7]} 40... Qxe4+ {[%clk 0:00:05.8]} 41.
Be3 {[%clk 0:00:09.7]} 41... Re8 {[%clk 0:00:05.7]} 42. Rd3 {[%clk 0:00:09.3]}
42... Qc4 {[%clk 0:00:05.5]} 43. Kd2 {[%clk 0:00:02.1]} 43... b4 {[%clk
0:00:04.8]} 44. axb4 {[%clk 0:00:02]} 44... Qxb4+ {[%clk 0:00:05.2]} 45. Ke2
{[%clk 0:00:02.9]} 45... Qc4 {[%clk 0:00:05.2]} 46. Kd2 {[%clk 0:00:02.9]} 46...
a5 {[%clk 0:00:04.4]} 47. Qe2 {[%clk 0:00:03.2]} 47... Qb4+ {[%clk 0:00:04.6]}
48. Kd1 {[%clk 0:00:03.1]} 48... a4 {[%clk 0:00:03.1]} 49. Qd2 {[%clk
0:00:03.6]} 49... Qe4 {[%clk 0:00:02.8]} 50. Rd8 {[%clk 0:00:02.5]} 50... a3
{[%clk 0:00:02.4]} 51. Rxe8+ {[%clk 0:00:02.4]} 51... Qxe8 {[%clk 0:00:03.3]}
52. Qd3 {[%clk 0:00:02.6]} 52... Qa4+ {[%clk 0:00:03.3]} 53. Ke2 {[%clk
0:00:02.6]} 53... a2 {[%clk 0:00:03.7]} 54. Qd8+ {[%clk 0:00:02.8]} 54... Kg7
{[%clk 0:00:03.6]} 55. Bd4+ {[%clk 0:00:03.4]} 55... Kh6 {[%clk 0:00:03.6]} 56.
Qh4# {[%clk 0:00:03.1]} 1-0

[Event "*** Titled Tuesday Blitz"]
[Site "Chess.com"]
[Date "2020.04.14"]
[Round "6"]
[White "littleozy"]
[Black "ItalianMachine"]
[Result "0-1"]
[WhiteElo "2402"]
[BlackElo "2291"]
[TimeControl "180+1"]
[EndTime "11:04:28 PDT"]
[Termination "ItalianMachine won by checkmate"]

1. a3 {[%clk 0:03:00.9]} 1... e5 {[%clk 0:02:53.9]} 2. b4 {[%clk 0:02:59.5]}
2... d5 {[%clk 0:02:50.4]} 3. Bb2 {[%clk 0:02:59.6]} 3... f6 {[%clk 0:02:50.7]}
4. e3 {[%clk 0:02:59.5]} 4... Bd6 {[%clk 0:02:50.2]} 5. c4 {[%clk 0:03:00]} 5...
c6 {[%clk 0:02:50.2]} 6. Nf3 {[%clk 0:02:59.1]} 6... Ne7 {[%clk 0:02:50.1]} 7.
d3 {[%clk 0:02:58.6]} 7... O-O {[%clk 0:02:50]} 8. Be2 {[%clk 0:02:59]} 8... Be6
{[%clk 0:02:48.9]} 9. O-O {[%clk 0:02:58.9]} 9... Nd7 {[%clk 0:02:49.1]} 10. Nc3
{[%clk 0:02:58]} 10... g5 {[%clk 0:02:44.8]} 11. Rc1 {[%clk 0:02:48]} 11... Ng6
{[%clk 0:02:44]} 12. cxd5 {[%clk 0:02:43.3]} 12... cxd5 {[%clk 0:02:43.1]} 13.
Nb5 {[%clk 0:02:42.8]} 13... Bb8 {[%clk 0:02:43.6]} 14. Qc2 {[%clk 0:02:35]}
14... Qb6 {[%clk 0:02:36.3]} 15. Nc7 {[%clk 0:02:32.8]} 15... Bxc7 {[%clk
0:02:13.9]} 16. Qxc7 {[%clk 0:02:33.7]} 16... Rfc8 {[%clk 0:00:43.7]} 17. Qxc8+
{[%clk 0:02:32.6]} 17... Rxc8 {[%clk 0:00:44.1]} 18. Rxc8+ {[%clk 0:02:33.1]}
18... Ndf8 {[%clk 0:00:44.5]} 19. Rc5 {[%clk 0:02:25.5]} 19... Nd7 {[%clk
0:00:42.7]} 20. Rc8+ {[%clk 0:02:25.5]} 20... Ndf8 {[%clk 0:00:42]} 21. Rc2
{[%clk 0:02:25.9]} 21... Qa6 {[%clk 0:00:31.7]} 22. d4 {[%clk 0:02:15.3]} 22...
Qa4 {[%clk 0:00:31.1]} 23. Rfc1 {[%clk 0:02:06.5]} 23... e4 {[%clk 0:00:29.7]}
24. Nd2 {[%clk 0:02:05.7]} 24... f5 {[%clk 0:00:20.3]} 25. Rc7 {[%clk
0:01:56.2]} 25... b6 {[%clk 0:00:20.6]} 26. Bd1 {[%clk 0:01:47.9]} 26... Qa6
{[%clk 0:00:20.6]} 27. a4 {[%clk 0:01:28.4]} 27... Qd3 {[%clk 0:00:19.5]} 28.
R1c2 {[%clk 0:01:20.5]} 28... Qa6 {[%clk 0:00:19.1]} 29. R2c3 {[%clk 0:01:13.2]}
29... f4 {[%clk 0:00:17.4]} 30. b5 {[%clk 0:01:11.5]} 30... Qa5 {[%clk
0:00:17.7]} 31. Ba3 {[%clk 0:01:03.5]} 31... Nd7 {[%clk 0:00:15.2]} 32. R7c6
{[%clk 0:00:53.3]} 32... Kf7 {[%clk 0:00:14.8]} 33. Bb3 {[%clk 0:00:49.4]} 33...
fxe3 {[%clk 0:00:13.7]} 34. fxe3 {[%clk 0:00:48.8]} 34... Ne7 {[%clk 0:00:13.4]}
35. Rc7 {[%clk 0:00:43.4]} 35... Nf5 {[%clk 0:00:13.7]} 36. Nf1 {[%clk
0:00:42.7]} 36... a6 {[%clk 0:00:11]} 37. bxa6 {[%clk 0:00:29.4]} 37... Qxa6
{[%clk 0:00:10.9]} 38. R3c6 {[%clk 0:00:29.2]} 38... Ne7 {[%clk 0:00:08.6]} 39.
Rd6 {[%clk 0:00:24.7]} 39... Nf5 {[%clk 0:00:08.4]} 40. Rdxd7+ {[%clk
0:00:24.2]} 40... Bxd7 {[%clk 0:00:08.7]} 41. Rxd7+ {[%clk 0:00:25.1]} 41... Ke6
{[%clk 0:00:09.3]} 42. Rxd5 {[%clk 0:00:25]} 42... Qd3 {[%clk 0:00:09.6]} 43.
Re5+ {[%clk 0:00:20.2]} 43... Kf6 {[%clk 0:00:10]} 44. Rb5 {[%clk 0:00:12]}
44... Nxe3 {[%clk 0:00:09.4]} 45. Rxb6+ {[%clk 0:00:12.1]} 45... Kg7 {[%clk
0:00:08.5]} 46. Rb7+ {[%clk 0:00:04.4]} 46... Kh6 {[%clk 0:00:08]} 47. Bf8+
{[%clk 0:00:03.1]} 47... Kh5 {[%clk 0:00:08.5]} 48. Bf7+ {[%clk 0:00:03.3]}
48... Kh4 {[%clk 0:00:07.9]} 49. g3+ {[%clk 0:00:02.4]} 49... Kg4 {[%clk
0:00:06.2]} 50. Be6+ {[%clk 0:00:03]} 50... Kf3 {[%clk 0:00:05.8]} 51. Rf7+
{[%clk 0:00:03.1]} 51... Ke2 {[%clk 0:00:05.9]} 52. Rf2+ {[%clk 0:00:03.5]}
52... Ke1 {[%clk 0:00:04.5]} 53. Rd2 {[%clk 0:00:04.1]} 53... Qxf1# {[%clk
0:00:04.3]} 0-1

[Event "*** Titled Tuesday Blitz"]
[Site "Chess.com"]
[Date "2020.04.14"]
[Round "6"]
[White "Ziachess74"]
[Black "poliplaza"]
[Result "0-1"]
[WhiteElo "2524"]
[BlackElo "2392"]
[TimeControl "180+1"]
[EndTime "11:04:29 PDT"]
[Termination "poliplaza won on time"]

1. d4 {[%clk 0:02:55.5]} 1... c5 {[%clk 0:03:00.2]} 2. d5 {[%clk 0:02:55]} 2...
Nf6 {[%clk 0:03:00.2]} 3. Nc3 {[%clk 0:02:54]} 3... d6 {[%clk 0:03:00.3]} 4. e4
{[%clk 0:02:53.3]} 4... g6 {[%clk 0:03:00.7]} 5. Nf3 {[%clk 0:02:52.4]} 5... Bg7
{[%clk 0:03:01]} 6. Bc4 {[%clk 0:02:52.3]} 6... O-O {[%clk 0:02:58.3]} 7. O-O
{[%clk 0:02:52.3]} 7... Na6 {[%clk 0:02:56.1]} 8. Re1 {[%clk 0:02:47.2]} 8...
Nd7 {[%clk 0:02:55.8]} 9. h3 {[%clk 0:02:43.8]} 9... Nc7 {[%clk 0:02:47.9]} 10.
a4 {[%clk 0:02:42.1]} 10... Rb8 {[%clk 0:02:45.7]} 11. Bf4 {[%clk 0:02:36.6]}
11... a6 {[%clk 0:02:42.1]} 12. a5 {[%clk 0:02:22.1]} 12... b5 {[%clk
0:02:37.4]} 13. axb6 {[%clk 0:02:21.3]} 13... Rxb6 {[%clk 0:02:24.7]} 14. Qc1
{[%clk 0:02:15.5]} 14... Nb5 {[%clk 0:01:58.3]} 15. Na4 {[%clk 0:02:13.1]} 15...
Rb8 {[%clk 0:01:54.9]} 16. Bh6 {[%clk 0:02:04.6]} 16... Nb6 {[%clk 0:01:25.1]}
17. Nxb6 {[%clk 0:01:59.7]} 17... Qxb6 {[%clk 0:01:24.5]} 18. b3 {[%clk
0:01:22.8]} 18... Bd7 {[%clk 0:00:34.2]} 19. e5 {[%clk 0:01:10.8]} 19... Nd4
{[%clk 0:00:26.7]} 20. Nxd4 {[%clk 0:01:06.8]} 20... cxd4 {[%clk 0:00:27.6]} 21.
Bxg7 {[%clk 0:01:03.5]} 21... Kxg7 {[%clk 0:00:26.6]} 22. Rxa6 {[%clk
0:01:03.1]} 22... Qc5 {[%clk 0:00:22]} 23. Qf4 {[%clk 0:00:56.4]} 23... Bb5
{[%clk 0:00:17.7]} 24. Bxb5 {[%clk 0:00:34.3]} 24... Qxb5 {[%clk 0:00:16.2]} 25.
Ra4 {[%clk 0:00:33.4]} 25... Qxd5 {[%clk 0:00:13.3]} 26. exd6 {[%clk 0:00:25.9]}
26... Qxd6 {[%clk 0:00:10]} 27. Qxd6 {[%clk 0:00:24.8]} 27... exd6 {[%clk
0:00:10.9]} 28. Rxd4 {[%clk 0:00:25.2]} 28... Rfc8 {[%clk 0:00:09.9]} 29. Re2
{[%clk 0:00:23.9]} 29... Rc6 {[%clk 0:00:09.8]} 30. Red2 {[%clk 0:00:18.1]}
30... Rbc8 {[%clk 0:00:09.9]} 31. c4 {[%clk 0:00:17.2]} 31... Rb6 {[%clk
0:00:10.2]} 32. R2d3 {[%clk 0:00:16.8]} 32... Rcb8 {[%clk 0:00:10.8]} 33. Rxd6
{[%clk 0:00:16]} 33... Rxd6 {[%clk 0:00:07.8]} 34. Rxd6 {[%clk 0:00:15.5]} 34...
Rxb3 {[%clk 0:00:08.7]} 35. g3 {[%clk 0:00:11.4]} 35... Rc3 {[%clk 0:00:08.7]}
36. Rc6 {[%clk 0:00:10.1]} 36... h5 {[%clk 0:00:07.6]} 37. Kg2 {[%clk
0:00:09.5]} 37... f6 {[%clk 0:00:07.3]} 38. h4 {[%clk 0:00:07.6]} 38... Rc2
{[%clk 0:00:06.2]} 39. Kf3 {[%clk 0:00:07.5]} 39... Rc1 {[%clk 0:00:06.5]} 40.
c5 {[%clk 0:00:07.2]} 40... Rc4 {[%clk 0:00:06.1]} 41. Rc7+ {[%clk 0:00:06.5]}
41... Kh6 {[%clk 0:00:06.1]} 42. Ke3 {[%clk 0:00:06.4]} 42... g5 {[%clk
0:00:05.6]} 43. c6 {[%clk 0:00:02.8]} 43... gxh4 {[%clk 0:00:05.1]} 44. gxh4
{[%clk 0:00:03]} 44... Rxh4 {[%clk 0:00:04.4]} 45. Rd7 {[%clk 0:00:03]} 45...
Rc4 {[%clk 0:00:03.9]} 46. c7 {[%clk 0:00:03.5]} 46... Kg6 {[%clk 0:00:03.3]}
47. Kd3 {[%clk 0:00:03.6]} 47... Rc1 {[%clk 0:00:03.1]} 48. Kd4 {[%clk
0:00:02.5]} 48... h4 {[%clk 0:00:03.3]} 49. Kd5 {[%clk 0:00:02.5]} 49... h3
{[%clk 0:00:03.7]} 0-1

[Event "*** Titled Tuesday Blitz"]
[Site "Chess.com"]
[Date "2020.04.14"]
[Round "6"]
[White "Gerasimenyuk_Miha"]
[Black "silverback96"]
[Result "1/2-1/2"]
[WhiteElo "2492"]
[BlackElo "2220"]
[TimeControl "180+1"]
[EndTime "11:04:29 PDT"]
[Termination "Game drawn - insufficient material"]

1. d4 {[%clk 0:03:00.9]} 1... Nf6 {[%clk 0:02:59.3]} 2. Nf3 {[%clk 0:02:58.8]}
2... c5 {[%clk 0:02:59.6]} 3. Bg5 {[%clk 0:02:57.1]} 3... cxd4 {[%clk 0:02:58]}
4. c3 {[%clk 0:02:55.7]} 4... dxc3 {[%clk 0:02:56.6]} 5. Nxc3 {[%clk 0:02:55.4]}
5... d6 {[%clk 0:02:38.7]} 6. e4 {[%clk 0:02:51.3]} 6... e6 {[%clk 0:02:38]} 7.
e5 {[%clk 0:02:50.3]} 7... dxe5 {[%clk 0:02:38.9]} 8. Qxd8+ {[%clk 0:02:49.4]}
8... Kxd8 {[%clk 0:02:39.8]} 9. Nxe5 {[%clk 0:02:48.3]} 9... Ke8 {[%clk
0:02:40.3]} 10. Nb5 {[%clk 0:02:47.5]} 10... Na6 {[%clk 0:02:38.2]} 11. O-O-O
{[%clk 0:02:44.9]} 11... Nd5 {[%clk 0:02:32.3]} 12. Bc4 {[%clk 0:02:41.3]} 12...
f6 {[%clk 0:02:27.5]} 13. Bxd5 {[%clk 0:02:36]} 13... exd5 {[%clk 0:02:28.4]}
14. Rhe1 {[%clk 0:02:29.7]} 14... fxe5 {[%clk 0:02:25.4]} 15. Rxe5+ {[%clk
0:02:28.5]} 15... Kf7 {[%clk 0:02:24.7]} 16. Rdxd5 {[%clk 0:02:25.1]} 16... Be6
{[%clk 0:02:15.3]} 17. Rd3 {[%clk 0:02:23.5]} 17... Rc8+ {[%clk 0:02:00.2]} 18.
Kb1 {[%clk 0:02:20.8]} 18... Bc5 {[%clk 0:01:59.6]} 19. Rf3+ {[%clk 0:02:19]}
19... Kg6 {[%clk 0:01:44.7]} 20. Rxe6+ {[%clk 0:02:12.7]} 20... Kxg5 {[%clk
0:01:45.6]} 21. h4+ {[%clk 0:02:07.2]} 21... Kh5 {[%clk 0:01:25.4]} 22. Rf5+
{[%clk 0:02:05.4]} 22... Kg4 {[%clk 0:01:25.1]} 23. Rg5+ {[%clk 0:01:37.8]}
23... Kxh4 {[%clk 0:01:24.6]} 24. Rxg7 {[%clk 0:01:36.6]} 24... Rc6 {[%clk
0:01:07.4]} 25. Re4+ {[%clk 0:01:22.4]} 25... Kh5 {[%clk 0:01:06.8]} 26. Rg3
{[%clk 0:01:18.1]} 26... Bxf2 {[%clk 0:00:51.8]} 27. Re5+ {[%clk 0:01:11.4]}
27... Kh6 {[%clk 0:00:50.7]} 28. Rg4 {[%clk 0:00:58]} 28... Rhc8 {[%clk
0:00:31.9]} 29. a3 {[%clk 0:00:57.2]} 29... Rc5 {[%clk 0:00:29.9]} 30. Re6+
{[%clk 0:00:43.3]} 30... Kh5 {[%clk 0:00:28.8]} 31. Rf4 {[%clk 0:00:40.2]} 31...
Rxb5 {[%clk 0:00:26.6]} 32. Rxf2 {[%clk 0:00:38.7]} 32... Rc6 {[%clk 0:00:23.6]}
33. Re7 {[%clk 0:00:38.4]} 33... Nc5 {[%clk 0:00:22.2]} 34. Rxh7+ {[%clk
0:00:31.7]} 34... Kg6 {[%clk 0:00:21.9]} 35. Rff7 {[%clk 0:00:30.4]} 35... Ne6
{[%clk 0:00:19.7]} 36. Rxb7 {[%clk 0:00:27.7]} 36... Rxb7 {[%clk 0:00:20.6]} 37.
Rxb7 {[%clk 0:00:27.8]} 37... a6 {[%clk 0:00:21.1]} 38. b4 {[%clk 0:00:26.6]}
38... Nc7 {[%clk 0:00:20.2]} 39. Kb2 {[%clk 0:00:24.7]} 39... Nb5 {[%clk
0:00:19.1]} 40. a4 {[%clk 0:00:22.7]} 40... Nd6 {[%clk 0:00:18.6]} 41. Ra7
{[%clk 0:00:20.5]} 41... Kf6 {[%clk 0:00:17.9]} 42. b5 {[%clk 0:00:18.9]} 42...
Rb6 {[%clk 0:00:15.8]} 43. Rxa6 {[%clk 0:00:17.8]} 43... Rxa6 {[%clk 0:00:14.8]}
44. bxa6 {[%clk 0:00:18.7]} 44... Nc8 {[%clk 0:00:15.3]} 45. Kb3 {[%clk
0:00:17.1]} 45... Ke7 {[%clk 0:00:14.4]} 46. Kb4 {[%clk 0:00:17]} 46... Kd7
{[%clk 0:00:15]} 47. Kc5 {[%clk 0:00:16.1]} 47... Kc7 {[%clk 0:00:15.5]} 48. g4
{[%clk 0:00:15.9]} 48... Ne7 {[%clk 0:00:16.1]} 49. g5 {[%clk 0:00:15.7]} 49...
Ng6 {[%clk 0:00:16.4]} 50. a5 {[%clk 0:00:15.1]} 50... Kb8 {[%clk 0:00:16.9]}
51. Kd6 {[%clk 0:00:14.9]} 51... Ka8 {[%clk 0:00:17.5]} 52. Ke6 {[%clk
0:00:14.9]} 52... Nh4 {[%clk 0:00:17.1]} 53. Ke5 {[%clk 0:00:13.4]} 53... Ka7
{[%clk 0:00:17.6]} 54. Kf6 {[%clk 0:00:13.2]} 54... Ka8 {[%clk 0:00:17.8]} 55.
g6 {[%clk 0:00:13.3]} 55... Nxg6 {[%clk 0:00:14.5]} 56. Kxg6 {[%clk 0:00:13.5]}
56... Ka7 {[%clk 0:00:15.4]} 57. Kf6 {[%clk 0:00:12.9]} 57... Kxa6 {[%clk
0:00:16.3]} 58. Ke6 {[%clk 0:00:12.2]} 58... Kxa5 {[%clk 0:00:17.2]} 1/2-1/2

[Event "*** Titled Tuesday Blitz"]
[Site "Chess.com"]
[Date "2020.04.14"]
[Round "6"]
[White "Nbk90"]
[Black "kingandqueen2017"]
[Result "1-0"]
[WhiteElo "2529"]
[BlackElo "2330"]
[TimeControl "180+1"]
[EndTime "11:04:31 PDT"]
[Termination "Nbk90 won by checkmate"]

1. e4 {[%clk 0:03:00.9]} 1... c5 {[%clk 0:02:56.3]} 2. Nf3 {[%clk 0:02:59.9]}
2... d6 {[%clk 0:02:49.7]} 3. Bc4 {[%clk 0:02:55.4]} 3... Nf6 {[%clk 0:02:47.8]}
4. d3 {[%clk 0:02:55.1]} 4... Nc6 {[%clk 0:02:42.6]} 5. O-O {[%clk 0:02:53.6]}
5... g6 {[%clk 0:02:42.5]} 6. Re1 {[%clk 0:02:52.6]} 6... Bg7 {[%clk 0:02:42.4]}
7. c3 {[%clk 0:02:53.2]} 7... O-O {[%clk 0:02:42.1]} 8. Bb3 {[%clk 0:02:53.7]}
8... Bg4 {[%clk 0:02:35.8]} 9. h3 {[%clk 0:02:52]} 9... Bxf3 {[%clk 0:02:35.5]}
10. Qxf3 {[%clk 0:02:52.6]} 10... Nd7 {[%clk 0:02:32]} 11. Qd1 {[%clk
0:02:51.8]} 11... e6 {[%clk 0:02:21.8]} 12. a4 {[%clk 0:02:45.9]} 12... a6
{[%clk 0:02:16]} 13. Na3 {[%clk 0:02:44.9]} 13... Nb6 {[%clk 0:02:11.6]} 14. Be3
{[%clk 0:02:36.5]} 14... Rc8 {[%clk 0:02:04.4]} 15. Qd2 {[%clk 0:02:26.9]} 15...
Na5 {[%clk 0:01:59.1]} 16. Bc2 {[%clk 0:02:22.7]} 16... c4 {[%clk 0:01:58]} 17.
d4 {[%clk 0:02:13.6]} 17... d5 {[%clk 0:01:54.8]} 18. e5 {[%clk 0:02:11.1]}
18... Qd7 {[%clk 0:01:46.9]} 19. Qd1 {[%clk 0:02:05.3]} 19... Qc6 {[%clk
0:01:30.2]} 20. Nb1 {[%clk 0:02:03.2]} 20... Nd7 {[%clk 0:01:26.6]} 21. Nd2
{[%clk 0:02:02.8]} 21... b6 {[%clk 0:01:13.8]} 22. h4 {[%clk 0:01:58.9]} 22...
Rfe8 {[%clk 0:01:06]} 23. h5 {[%clk 0:01:58.1]} 23... Nf8 {[%clk 0:01:03.9]} 24.
Qg4 {[%clk 0:01:53.8]} 24... Qd7 {[%clk 0:00:55]} 25. Bg5 {[%clk 0:01:44.1]}
25... Nc6 {[%clk 0:00:51.6]} 26. Qh4 {[%clk 0:01:40.1]} 26... h6 {[%clk
0:00:45.5]} 27. Be3 {[%clk 0:01:30]} 27... g5 {[%clk 0:00:44.8]} 28. Qg4 {[%clk
0:01:30]} 28... f5 {[%clk 0:00:42.7]} 29. exf6 {[%clk 0:01:28.9]} 29... Bxf6
{[%clk 0:00:42.9]} 30. f4 {[%clk 0:01:16.1]} 30... Qg7 {[%clk 0:00:35.3]} 31.
fxg5 {[%clk 0:01:14.9]} 31... Bxg5 {[%clk 0:00:32.8]} 32. Bxg5 {[%clk
0:01:06.4]} 32... Qxg5 {[%clk 0:00:28.6]} 33. Qxg5+ {[%clk 0:01:06.6]} 33...
hxg5 {[%clk 0:00:28.3]} 34. Nf3 {[%clk 0:01:07.2]} 34... g4 {[%clk 0:00:25.8]}
35. Ne5 {[%clk 0:01:02.7]} 35... Nxe5 {[%clk 0:00:25.2]} 36. Rxe5 {[%clk
0:01:02.3]} 36... Kg7 {[%clk 0:00:23.3]} 37. Rg5+ {[%clk 0:00:54.2]} 37... Kh6
{[%clk 0:00:23]} 38. Rxg4 {[%clk 0:00:54.3]} 38... Kxh5 {[%clk 0:00:22.9]} 39.
Rg3 {[%clk 0:00:43.8]} 39... Nd7 {[%clk 0:00:11.5]} 40. Bg6+ {[%clk 0:00:41.3]}
40... Kh4 {[%clk 0:00:10.9]} 41. Bxe8 {[%clk 0:00:37.4]} 41... Rxe8 {[%clk
0:00:09.7]} 42. Kf2 {[%clk 0:00:31.5]} 42... Rf8+ {[%clk 0:00:09]} 43. Rf3
{[%clk 0:00:31.8]} 43... Rg8 {[%clk 0:00:08.9]} 44. Rh1+ {[%clk 0:00:30.5]}
44... Kg4 {[%clk 0:00:08.3]} 45. Rg3+ {[%clk 0:00:30.8]} 45... Kf4 {[%clk
0:00:08.4]} 46. Rxg8 {[%clk 0:00:30.7]} 46... e5 {[%clk 0:00:08.2]} 47. Rh7
{[%clk 0:00:27.8]} 47... Nf6 {[%clk 0:00:07.2]} 48. Rf7 {[%clk 0:00:27.8]} 48...
Kf5 {[%clk 0:00:07.1]} 49. Rgf8 {[%clk 0:00:27.1]} 49... exd4 {[%clk 0:00:07.7]}
50. Rxf6+ {[%clk 0:00:27.3]} 50... Ke4 {[%clk 0:00:08.3]} 51. Rf4+ {[%clk
0:00:26.9]} 51... Kd3 {[%clk 0:00:09]} 52. Rxd4+ {[%clk 0:00:27]} 52... Kc2
{[%clk 0:00:09.2]} 53. Ke3 {[%clk 0:00:27.2]} 53... Kxb2 {[%clk 0:00:09.8]} 54.
Kd2 {[%clk 0:00:27.8]} 54... b5 {[%clk 0:00:09.9]} 55. Rb8 {[%clk 0:00:28]}
55... Ka3 {[%clk 0:00:09]} 56. axb5 {[%clk 0:00:28.1]} 56... axb5 {[%clk
0:00:09.4]} 57. Rxb5 {[%clk 0:00:28.4]} 57... Ka4 {[%clk 0:00:09.2]} 58. Rbxd5
{[%clk 0:00:28.5]} 58... Ka3 {[%clk 0:00:09.5]} 59. Kc2 {[%clk 0:00:27.7]} 59...
Ka4 {[%clk 0:00:08.4]} 60. Rxc4+ {[%clk 0:00:25.4]} 60... Ka3 {[%clk 0:00:08.6]}
61. Ra5# {[%clk 0:00:25.5]} 1-0